Cogmind - Beta 9.4 @@@ ROGUE MODE // 2020.03.14 @ 15:23:31 Player: s0lid Result: Destroyed by G-47 Trooper with Particle Gun Performance ------------- Evolutions (2) 1000 Regions Visited (9) 1800 Robots Destroyed (79) 395 Value Destroyed (3330) 3330 Prototype IDs (7) 140 Alien Tech Used (0) 0 Bonus (630) 630 TOTAL SCORE: 7295 Bonus ------- High Alert Combat Kills 192 Follower Combat Kills 28 Entered Garrisons 200 Used RIF Installer 500 Friendly Fire -290 Cogmind --------- Core Integrity 0/550 Matter 300/300 Energy 160/160 System Corruption 1% Temperature Cool (9) Movement Walking (120) Location -8/Materials Parts ------- > --- POWER (1) -------- Light Nuclear Core > --- PROPULSION (3) --- Aluminum Leg Aluminum Leg Aluminum Leg > --- UTILITY (5) ------ Large Storage Unit Targeting Computer Advanced Targeting Computer Relay Coupler [NC] (1) Relay Coupler [NC] (27) > --- WEAPON (2) ------- Advanced Beam Rifle Improved Datajack > --- INVENTORY (10) --- Aluminum Leg Relay Coupler [NC] (29) Relay Coupler [NC] (29) Relay Coupler [Swarmer] (36) Relay Coupler [Grunt] (31) Relay Coupler [Brawler] (26) Relay Coupler [Sentry] (25) Relay Coupler [Sentry] (24) Shotgun Shock Bomb Launcher Peak State ------------ > --- POWER ------------ Light Nuclear Core > --- PROPULSION ------- Light Treads Light Treads Aluminum Leg > --- UTILITY ---------- Large Storage Unit Targeting Computer Advanced Targeting Computer Relay Coupler [NC] Relay Coupler [Grunt] > --- WEAPON ----------- Heavy Assault Rifle Improved Datajack > --- INVENTORY -------- Relay Coupler [NC] Relay Coupler [NC] Relay Coupler [Swarmer] Relay Coupler [Grunt] Relay Coupler [Brawler] Relay Coupler [Sentry] Relay Coupler [Sentry] Shotgun Shock Bomb Launcher [Rating: 22] Favorites ----------- Power Light Nuclear Core Engine Ion Engine Power Core Light Nuclear Core Propulsion Aluminum Leg Treads Light Treads Leg Aluminum Leg Wheel Wheel Flight Unit Improved Flight Unit Utility Large Storage Unit Device Maneuvering Thrusters Storage Large Storage Unit Processor Advanced Targeting Computer Hackware Relay Coupler [NC] Protection Light Armor Plating Weapon Improved EM Shotgun Energy Gun Improved EM Shotgun Ballistic Gun Heavy Assault Rifle Ballistic Cannon Improved Light Cannon Launcher Shock Bomb Launcher Special Weapon Mining Laser Special Melee Weapon Improved Datajack Build | -11 -10 -10 -9 -9 -9 -8 -8 -8 -8 ------- Run | Scr Mat Min Mat Min Exi Min Mat Gar Mat Slots Evolved 4 | . . . 2 . . . 2 . . Power . | . . . . . . . . . . Propulsion 1 | . . . 1 . . . . . . Utility 3 | . . . 1 . . . 2 . . Weapon . | . . . . . . . . . . Parts Attached 93 | 7 22 6 10 2 . . 14 31 1 Power 14 | 1 7 2 . . . . 1 3 . Engine 10 | 1 7 . . . . . 1 1 . Core 4 | . . 2 . . . . . 2 . Reactor . | . . . . . . . . . . Propulsion 31 | 2 4 3 5 . . . 4 13 . Treads 9 | . . . 1 . . . 2 6 . Leg 10 | . . 1 3 . . . . 6 . Wheel 10 | 2 4 2 . . . . 1 1 . Hover . | . . . . . . . . . . Flight 2 | . . . 1 . . . 1 . . Utility 17 | 1 4 1 1 . . . 4 6 . Device 1 | . . . . . . . 1 . . Storage 6 | 1 3 . . . . . 1 1 . Processor 4 | . 1 1 1 . . . 1 . . Hackware 3 | . . . . . . . . 3 . Protection 3 | . . . . . . . 1 2 . Artifact . | . . . . . . . . . . Weapon 31 | 3 7 . 4 2 . . 5 9 1 Energy Gun 10 | 2 6 . . 1 . . . . 1 Energy Cannon . | . . . . . . . . . . Ballistic Gun 11 | 1 . . 2 1 . . 2 5 . Ballistic Cannon 3 | . 1 . . . . . 1 1 . Launcher 5 | . . . 1 . . . 2 2 . Special Weapon 1 | . . . 1 . . . . . . Impact Weapon . | . . . . . . . . . . Slashing Weapon . | . . . . . . . . . . Piercing Weapon . | . . . . . . . . . . Special Melee Weapon 1 | . . . . . . . . 1 . Unidentified Prototypes 3 | . 1 . 1 . . . . . 1 Parts Lost 20 | . . 2 3 . . . 6 9 . Power 4 | . . 1 . . . . 1 2 . Propulsion 10 | . . 1 2 . . . 3 4 . Utility 3 | . . . . . . . 2 1 . Weapon 3 | . . . 1 . . . . 2 . Highest Loss Streak 3 | . . 1 2 . . . 3 3 . Average Slot Usage (%) 96 | . 98 99 94 100 100 100 86 94 100 Engine 5 | . 14 . . . . . 5 2 . Core 5 | . . 13 11 11 11 11 2 5 9 Treads 3 | . . . 2 . . . 2 12 . Leg 11 | . . . 12 33 33 33 15 12 27 Wheel 11 | . 28 27 13 . . . . 1 . Storage 16 | . 27 14 11 11 11 11 17 11 9 Processor 13 | . . 14 21 22 22 22 18 18 18 Hackware 2 | . . . . . . . . 8 18 Protection 1 | . . . . . . . . 4 . Energy Gun 12 | . 24 28 14 9 11 11 1 . 8 Ballistic Gun 6 | . . . 7 11 11 11 11 10 . Ballistic Cannon 1 | . 1 . . . . . 3 2 . Special Melee Weapon 1 | . . . . . . . . 4 9 Naked Turns . | . . . . . . . . . . Heaviest Build 51 | 10 51 27 30 27 27 27 35 36 25 Greatest Support 60 | 26 26 26 30 30 30 30 40 60 30 Greatest Overweight (x) 5 | . 1 2 2 . . . 5 3 . Average Overweight (x) . | . . 1 1 . . . 1 . . Largest Inventory Capacity 18 | 6 18 10 10 10 10 10 10 10 10 Average Capacity 11 | 5 15 10 10 10 10 10 10 10 10 Most Carried 16 | 4 16 10 10 10 10 10 10 10 10 Average Carried 10 | 1 12 9 8 10 10 10 9 9 10 Final Capacity 16 | 6 16 10 10 10 10 10 10 10 10 Final Carried 13 | 4 13 10 10 10 10 10 9 10 10 Class Distribution -------------------- 68% | Mutant 18% | Bothacker-Mutant 12% | Scavenger-Mutant Dominant Class ---------------- Mutant | -10/Materials Mutant | -10/Mines Mutant | -9/Materials Mutant | -9/Mines Mutant | -9/Exiles Mutant | -8/Mines Mutant | -8/Materials Bothacker-Mutant | -8/Garrison Bothacker-Mutant | -8/Materials Resources | -11 -10 -10 -9 -9 -9 -8 -8 -8 -8 ----------- Run | Scr Mat Min Mat Min Exi Min Mat Gar Mat Matter Collected 1942 | 221 503 60 83 30 . 60 288 687 10 Remotely . | . . . . . . . . . . Salvage Created 2782 | . 951 352 225 . . 103 318 719 114 Parts 167 | . 56 17 11 . . 10 28 41 4 Haulers Intercepted 3 | . 2 . 1 . . . . . . Recyclers Shooed . | . . . . . . . . . . Parts Field Recycled . | . . . . . . . . . . Retrieved Matter . | . . . . . . . . . . Parts Self-Destructed . | . . . . . . . . . . Prevented . | . . . . . . . . . . Kills | -11 -10 -10 -9 -9 -9 -8 -8 -8 -8 ------- Run | Scr Mat Min Mat Min Exi Min Mat Gar Mat Combat Hostiles Destroyed 69 | . 19 9 3 . . 7 9 20 2 Guns 51 | . 16 9 2 . . 7 3 12 2 Cannons 8 | . 1 . . . . . 2 5 . AOE 10 | . 2 . 1 . . . 4 3 . Classes Destroyed 9 | . 5 . 1 . . . 3 . . Worker 1 | . . . . . . . 1 . . Builder 2 | . 1 . . . . . 1 . . Hauler 3 | . 2 . 1 . . . . . . Recycler 1 | . . . . . . . 1 . . Watcher 3 | . 3 . . . . . . . . Swarmer 21 | . 3 3 . . . 7 4 4 . Grunt 35 | . 16 6 1 . . . . 12 . Sentry 12 | . . . 2 . . . 4 4 2 Hunter 1 | . . . . . . . 1 . . Best Kill Streak 6 | . 5 3 2 . . 4 6 4 1 Combat Bots Only 5 | . 4 3 1 . . 4 5 4 1 Max Kills in Single Turn 2 | . 1 2 1 . . 2 2 2 1 Gunslinging 1 | . . 1 . . . 1 . . . Exploded 2 | . 1 . 1 . . . 1 2 . Melee . | . . . . . . . . . . Uniques/NPCs Destroyed . | . . . . . . . . . . Combat | -11 -10 -10 -9 -9 -9 -8 -8 -8 -8 -------- Run | Scr Mat Min Mat Min Exi Min Mat Gar Mat Damage Taken 3878 | . 542 309 182 . . 132 609 1891 213 Core 777 | . 151 39 27 . . 8 118 370 64 Absorbed by Shields . | . . . . . . . . . . Core Remaining (%) 71 | 100 . 24 . . . 91 . . . Volleys Fired 213 | . 54 17 11 . . 10 29 80 12 Largest 2 | . 2 2 2 . . 2 2 2 1 Hottest 90 | . 90 90 90 . . 81 62 62 61 Shots Fired 364 | . 108 34 18 . . 20 45 127 12 Gun 268 | . 88 34 15 . . 20 24 75 12 Cannon 82 | . 20 . . . . . 12 50 . Launcher 14 | . . . 3 . . . 9 2 . Special . | . . . . . . . . . . Kinetic 197 | . 24 . 2 . . 10 36 125 . Thermal 22 | . . . . . . 10 . . 12 Explosive 3 | . . . . . . . 3 . . Electromagnetic 142 | . 84 34 16 . . . 6 2 . Robot Hit Streak 26 | . 9 11 9 . . 5 11 26 13 Robot Miss Streak 4 | . 4 4 3 . . 3 2 2 . Penetration Max . | . . . . . . . . . . Secondary Targets 4 | . 1 2 . . . 1 . . . Max Gunslinging Chain 1 | . 1 1 . . . 1 . . . Shots Hit Robots 270 | . 77 26 15 . . 11 27 97 17 Core Hits 143 | . 44 18 7 . . 7 22 43 2 Critical Hits 3 | . 1 . . . . . . 2 . Critical Kills 1 | . . . . . . . . 1 . Critical Parts Destroyed 2 | . 1 . . . . . . 1 . Melee Attacks 10 | . . . . . . . . 5 5 Impact . | . . . . . . . . . . Slashing . | . . . . . . . . . . Piercing . | . . . . . . . . . . Sneak Attacks 5 | . . . . . . . . . 5 Combat Hostiles . | . . . . . . . . . . Follow-up Attacks . | . . . . . . . . . . Damage Inflicted 5427 | . 1396 376 344 . . 169 855 2047 240 Guns 3205 | . 1062 362 174 . . 169 256 942 240 Cannons 1110 | . 166 . . . . . 207 737 . Explosions 1109 | . 168 14 170 . . . 389 368 . Melee . | . . . . . . . . . . Ramming 3 | . . . . . . . 3 . . Kinetic 2449 | . 200 . 22 . . 85 463 1679 . Thermal 531 | . 168 14 25 . . 84 . . 240 Explosive 568 | . . . . . . . 293 275 . Electromagnetic 1876 | . 1028 362 297 . . . 96 93 . Impact . | . . . . . . . . . . Slashing . | . . . . . . . . . . Piercing . | . . . . . . . . . . Highest Corruption 2 | . 2 2 . . . . 1 1 1 Average Corruption 1 | . 1 2 . . . . 1 1 1 Corruption Purged . | . . . . . . . . . . Effects 40 | . 19 8 . . . . 2 10 1 Message Errors 14 | . 5 4 . . . . 2 3 . Heat Flow Errors 7 | . 6 1 . . . . . . . Energy Discharges 6 | . 5 . . . . . . 1 . Data Loss (minor) 9 | . 3 2 . . . . . 4 . Targeting Errors 4 | . . 1 . . . . . 2 1 Overload Shots . | . . . . . . . . . . Overflow Damage 46 | . . . . . . . 22 24 . Projectiles 5 | . . . . . . . . 5 . Explosions 41 | . . . . . . . 22 19 . Melee . | . . . . . . . . . . Knockbacks 15 | . 6 . . . . . . 9 . Impact . | . . . . . . . . . . Kinetic 14 | . 5 . . . . . . 9 . Secondary 1 | . 1 . . . . . . . . Self-Inflicted Damage 436 | . 94 35 14 . . . 111 182 . Shots 16 | . 4 1 1 . . . 6 4 . Rammed 1 | . . . . . . . 1 . . Targets Rammed 1 | . . . . . . . 1 . . Kicked . | . . . . . . . . . . Crushed . | . . . . . . . . . . Highest Temperature 277 | . 277 236 101 . . 90 8 78 150 Average Temperature 67 | . 85 105 38 . . 38 3 19 76 Received Heat Transfer 1386 | . 225 135 45 . . . 99 774 108 Siege Activations . | . . . . . . . . . . Robots Corrupted . | . . . . . . . . . . Combat Hostiles . | . . . . . . . . . . Parts Fried 6 | . 4 2 . . . . . . . Impact Corruptions . | . . . . . . . . . . Robots Melted . | . . . . . . . . . . Combat Hostiles . | . . . . . . . . . . Parts Melted 4 | . . . . . . 2 . . 2 Heat Transferred 979 | . 250 50 50 . . 185 . . 444 Parts Sabotaged . | . . . . . . . . . . Parts Stolen . | . . . . . . . . . . Parts Stripped . | . . . . . . . . . . Power Chain Reactions 11 | . 5 2 2 . . . 1 1 . Missiles Intercepted . | . . . . . . . . . . Alert | -11 -10 -10 -9 -9 -9 -8 -8 -8 -8 ------- Run | Scr Mat Min Mat Min Exi Min Mat Gar Mat Peak Influence 958 | . 187 186 92 31 . 175 245 958 512 Average Influence 256 | . 61 87 50 31 . 90 99 689 462 Maximum Alert Level 3 | . . . . . . . 1 3 2 Low Security (%) 63 | 100 100 100 100 100 . 100 69 9 . Level 1 4 | . . . . . . . 30 4 12 Level 2 12 | . . . . . . . . 30 87 Level 3 19 | . . . . . . . . 55 . Level 4 . | . . . . . . . . . . Level 5 . | . . . . . . . . . . High Security . | . . . . . . . . . . Max Security . | . . . . . . . . . . Squads Dispatched 8 | . 4 1 2 . . . . . 1 Investigation 6 | . 4 1 1 . . . . . . Extermination . | . . . . . . . . . . Reinforcement 2 | . . . 1 . . . . . 1 Assault . | . . . . . . . . . . Garrison . | . . . . . . . . . . Intercept . | . . . . . . . . . . Construction Impeded . | . . . . . . . . . . Haulers Reinforced . | . . . . . . . . . . Stealth | -11 -10 -10 -9 -9 -9 -8 -8 -8 -8 --------- Run | Scr Mat Min Mat Min Exi Min Mat Gar Mat Distress Signals 3 | . 1 . 1 1 . . . . . Communications Jammed . | . . . . . . . . . . Distress Signals . | . . . . . . . . . . Times Spotted 100 | . 26 8 13 2 . 7 11 28 5 Peak Tracking Total 6 | . 3 3 6 2 . 4 5 4 3 Tactical Retreats 6 | . 2 . . 1 . . 1 2 . Traps | -11 -10 -10 -9 -9 -9 -8 -8 -8 -8 ------- Run | Scr Mat Min Mat Min Exi Min Mat Gar Mat Traps Triggered 5 | . 3 . 1 . . . . 1 . Indirectly . | . . . . . . . . . . Trap Hack Attempts 37 | . . . . . . . . 37 . Triggered . | . . . . . . . . . . Disarmed . | . . . . . . . . . . Reprogrammed 3 | . . . . . . . . 3 . Reused . | . . . . . . . . . . Traps Extracted . | . . . . . . . . . . Installed . | . . . . . . . . . . Triggered . | . . . . . . . . . . Machines | -11 -10 -10 -9 -9 -9 -8 -8 -8 -8 ---------- Run | Scr Mat Min Mat Min Exi Min Mat Gar Mat Machines Disabled 12 | . 2 . 3 . . 1 . 6 . Max in Single Turn 2 | . 1 . 2 . . 1 . 2 . Garrison Relay 4 | . . . . . . . . 4 . Phase Generator 1 | . . . . . . . . 1 . Machines Sabotaged . | . . . . . . . . . . Garrisons Compromised . | . . . . . . . . . . Overloaded Fab Kills . | . . . . . . . . . . Fab Network Shutdowns . | . . . . . . . . . . Hacking | -11 -10 -10 -9 -9 -9 -8 -8 -8 -8 --------- Run | Scr Mat Min Mat Min Exi Min Mat Gar Mat Machines Accessed 15 | . 9 1 2 . . . 2 . 1 Terminals 11 | . 7 . 2 . . . 1 . 1 Fabricators . | . . . . . . . . . . Repair Stations 1 | . 1 . . . . . . . . Recycling Units 1 | . 1 . . . . . . . . Scanalyzers . | . . . . . . . . . . Garrison Access 1 | . . . . . . . 1 . . Total Hacks 47 | . 36 1 7 . . . 2 . 1 Successful 29 | . 23 1 3 . . . 2 . . Failed 18 | . 13 . 4 . . . . . 1 Catastrophic 5 | . 3 . 2 . . . . . . Database Lockouts . | . . . . . . . . . . Manual 23 | . 16 . 5 . . . 1 . 1 Terminals 35 | . 26 . 7 . . . 1 . 1 Fabricators . | . . . . . . . . . . Repair Stations 6 | . 6 . . . . . . . . Recycling Units 4 | . 4 . . . . . . . . Scanalyzers . | . . . . . . . . . . Garrison Access 1 | . . . . . . . 1 . . Terminal Hacks 14 | . 11 1 2 . . . . . . Part Schematic 2 | . 2 . . . . . . . . Prototype ID Bank 2 | . 2 . . . . . . . . Open Door 1 | . . 1 . . . . . . . Branch Access Points 1 | . 1 . . . . . . . . Alert Level 3 | . 2 . 1 . . . . . . Unreport Threat 2 | . 1 . 1 . . . . . . Locate Traps 3 | . 3 . . . . . . . . Fabricator Hacks . | . . . . . . . . . . Repair Station Hacks 6 | . 6 . . . . . . . . Scan Component 3 | . 3 . . . . . . . . Repair 3 | . 3 . . . . . . . . Recycling Unit Hacks 2 | . 2 . . . . . . . . Report Inventory 1 | . 1 . . . . . . . . Retrieve Components 1 | . 1 . . . . . . . . Scanalyzer . | . . . . . . . . . . Garrison Access Hacks 1 | . . . . . . . 1 . . Unlock Access 1 | . . . . . . . 1 . . Unauthorized Hacks 12 | . 8 . 2 . . . 2 . . Terminals 6 | . 4 . 1 . . . 1 . . Botnet 6 | . 4 . 1 . . . 1 . . Fabricators . | . . . . . . . . . . Repair Stations . | . . . . . . . . . . Recycling Units . | . . . . . . . . . . Scanalyzers . | . . . . . . . . . . Garrison Access . | . . . . . . . . . . Data Cores Recovered . | . . . . . . . . . . Used . | . . . . . . . . . . Hacking Detections 11 | . 8 . 2 . . . . . 1 Full Trace Events 5 | . 5 . . . . . . . . Feedback Events . | . . . . . . . . . . Feedback Blocked . | . . . . . . . . . . Robot Schematics Acquired . | . . . . . . . . . . Robots Built . | . . . . . . . . . . Matter . | . . . . . . . . . . Time . | . . . . . . . . . . Total Robot Build Rating . | . . . . . . . . . . Part Schematics Acquired 2 | . 2 . . . . . . . . Parts Built . | . . . . . . . . . . Matter . | . . . . . . . . . . Time . | . . . . . . . . . . Total Part Build Rating . | . . . . . . . . . . Parts Repaired 3 | . 3 . . . . . . . . Time 153 | . 153 . . . . . . . . Parts Recycled . | . . . . . . . . . . Recycled Matter . | . . . . . . . . . . Retrieved Matter . | . . . . . . . . . . Retrieved Components 9 | . 9 . . . . . . . . Parts Scanalyzed . | . . . . . . . . . . Part Schematics Acquired . | . . . . . . . . . . Parts Damaged . | . . . . . . . . . . Bothacking | -11 -10 -10 -9 -9 -9 -8 -8 -8 -8 ------------ Run | Scr Mat Min Mat Min Exi Min Mat Gar Mat Used RIF Installer 1 | . . . . . . . . 1 . Robots Hacked 8 | . . . . . . . . 3 5 Non-combat 5 | . . . . . . . . . 5 Combat 3 | . . . . . . . . 3 . Robot Hacks Applied 8 | . . . . . . . . 3 5 deconstruct_machine 1 | . . . . . . . . . 1 map_walls 1 | . . . . . . . . . 1 map_earth 1 | . . . . . . . . . 1 purge_threat 1 | . . . . . . . . . 1 link_fov 1 | . . . . . . . . . 1 broadcast_data 1 | . . . . . . . . 1 . formatsys_high 2 | . . . . . . . . 2 . Relay Couplers Released 19 | . . . . . . . . 19 . Machine Destruction 19 | . . . . . . . . 19 . Attached 3 | . . . . . . . . 3 . Robots Rewired . | . . . . . . . . . . Allies Hacked . | . . . . . . . . . . Hacks Repelled . | . . . . . . . . . . Allies | -11 -10 -10 -9 -9 -9 -8 -8 -8 -8 -------- Run | Scr Mat Min Mat Min Exi Min Mat Gar Mat Total Allies 2 | . . . . . . . . 2 . Largest Group 2 | . . . . . . . . 2 2 Highest-Rated Group 32 | . . . . . . . . 32 30 Highest-Rated Ally 16 | . . . . . . . . 16 16 Total Orders . | . . . . . . . . . . Ally Attacks 19 | . . . . . . . . 14 5 Total Damage 256 | . . . . . . . . 175 81 Kills 4 | . . . . . . . . 4 . Allies Corrupted . | . . . . . . . . . . Allies Melted . | . . . . . . . . . . Intel | -11 -10 -10 -9 -9 -9 -8 -8 -8 -8 ------- Run | Scr Mat Min Mat Min Exi Min Mat Gar Mat Robot Analysis Total . | . . . . . . . . . . Derelict Logs Recovered 2 | . . 1 . 1 . . . . . Drone Launches . | . . . . . . . . . . Drone Recoveries . | . . . . . . . . . . Exploration | -11 -10 -10 -9 -9 -9 -8 -8 -8 -8 ------------- Run | Scr Mat Min Mat Min Exi Min Mat Gar Mat Turns Passed 6726 | 45 1934 647 323 319 262 660 552 1864 120 Spaces Moved 4735 | 35 1441 553 260 251 219 520 264 1129 63 Core 2 | 2 . . . . . . . . . Treads 473 | . . . 15 . . . 37 421 . Legs 1841 | . . 12 11 251 219 520 193 572 63 Wheels 2402 | 33 1441 541 234 . . . 17 136 . Hover . | . . . . . . . . . . Flight 17 | . . . . . . . 17 . . Fastest Speed 50 | 50 90 90 90 120 120 120 110 100 120 Average Speed 115 | 88 99 98 101 120 120 120 157 135 120 Slowest Speed 385 | 100 100 180 180 120 120 120 385 210 120 Overloaded Moves . | . . . . . . . . . . Propulsion Burnouts . | . . . . . . . . . . Robots Hopped . | . . . . . . . . . . Cave-ins Triggered . | . . . . . . . . . . Exploration Rate (%) 53 | 3 97 88 26 44 51 96 26 96 11 Regions Visited 9 Branch Regions 4 Pre-discovered Areas 2 | . . 1 . 1 . . . . . Known Exits Taken 2 | . 1 . . . . . 1 . . Unknown Exits Taken 6 | 1 . 1 1 1 1 1 . . . Scrap Searched 3 | . . 1 . 1 . 1 . . . Spaces Dug . | . . . . . . . . . . Terrain Destroyed 141 | . 19 8 6 . . . 30 78 . Melee . | . . . . . . . . . . Projectile . | . . . . . . . . . . AOE 141 | . 19 8 6 . . . 30 78 . Actions | -11 -10 -10 -9 -9 -9 -8 -8 -8 -8 --------- Run | Scr Mat Min Mat Min Exi Min Mat Gar Mat Total 5628 | 45 1843 623 303 268 218 536 351 1348 93 Wait 399 | . 263 38 10 16 . 7 38 16 11 Move 4725 | 34 1440 552 259 250 218 519 263 1127 63 Hop . | . . . . . . . . . . Pick Up 60 | 4 26 4 6 . . . 2 18 . Fast Attach 49 | 6 10 3 5 . . . 8 16 1 Attach 13 | . 3 . 3 . . . 2 5 . Detach 10 | . 6 1 1 . . . . 2 . Swap 33 | 1 9 3 2 2 . . 4 12 . Drop 74 | . 32 5 6 . . . 4 26 1 Fire 213 | . 54 17 11 . . 10 29 80 12 Melee 10 | . . . . . . . . 5 5 Ram . | . . . . . . . . . . Kick 1 | . . . . . . . 1 . . Crush . | . . . . . . . . . . Escape Stasis 4 | . . . . . . . . 4 . Rewire . | . . . . . . . . . . Trap 37 | . . . . . . . . 37 . Miscellaneous . | . . . . . . . . . . Route ------- -11/Scrapyard -10/Materials (discovered 4 exits: *Mat x3 / *Min) -10/Mines (discovered 2 exits: *Mat x2) -9/Materials (discovered 2 exits: [*Min x2]) -9/Mines -9/Exiles -8/Mines (discovered 2 exits: *Mat x2) -8/Materials (discovered 2 exits: [*Sto] / Gar) -8/Garrison (discovered 3 exits: *Mat x3) -8/Materials History --------- Turn | Location | Event 25 | -11/Scrapyard | Discovered new exit (range 15) 46 | -11/Scrapyard | Entered Materials 307 | -10/Materials | Build established: Mutant 332 | -10/Materials | Discovered new exit (range 10) 428 | -10/Materials | Discovered new exit (range 13) 715 | -10/Materials | Discovered new exit (range 4) 1028 | -10/Materials | Discovered new exit (range 16) 1036 | -10/Materials | Identified exit to Mines 1425 | -10/Materials | Repaired Imp. EM Shotgun 1478 | -10/Materials | Repaired Imp. EM Shotgun 1621 | -10/Materials | Core integrity fell below 50% 1849 | -10/Materials | Repaired Imp. EM Shotgun 1980 | -10/Materials | Entered Mines 2110 | -10/Mines | Met a Derelict shopkeep closing up shop 2203 | -10/Mines | Learned location of Zion (-7) 2205 | -10/Mines | Discovered new exit (range 8) 2281 | -10/Mines | Discovered new exit (range 15) 2627 | -10/Mines | Entered Materials 2627 | -9/Materials | Evolved 2 slots: Propulsion x1, Utility x1 2727 | -9/Materials | Discovered new exit (range 6) 2881 | -9/Materials | Discovered new exit (range 14) 2950 | -9/Materials | Entered Mines 3013 | -9/Mines | Learned location of Recycling (-8) 3037 | -9/Mines | Deemed a non-threat by the Exiles lab entrance 3038 | -9/Mines | Discovered new exit (range 5) 3220 | -9/Mines | Assembled infested the area 3269 | -9/Mines | Entered Exiles 3298 | -9/Exiles | Met 8R-AWN 3319 | -9/Exiles | Met EX-HEX 3383 | -9/Exiles | Met EX-DEC 3513 | -9/Exiles | Discovered new exit (range 15) 3531 | -9/Exiles | Entered Mines 3614 | -8/Mines | Discovered new exit (range 9) 3765 | -8/Mines | Discovered new exit (range 5) 4191 | -8/Mines | Entered Materials 4191 | -8/Materials | Evolved 2 slots: Utility x2 4213 | -8/Materials | Discovered new exit (range 16) 4419 | -8/Materials | Lost 3 parts (1p1n1u) 4741 | -8/Materials | Identified exit to Garrison 4743 | -8/Materials | Entered Garrison 4778 | -8/Garrison | Triggered checkpoint 4814 | -8/Garrison | Garrison Relay disabled 4914 | -8/Garrison | Triggered checkpoint 5008 | -8/Garrison | Build established: Scavenger-Mutant 5038 | -8/Garrison | Discovered new exit (range 12) 5110 | -8/Garrison | Triggered checkpoint 5150 | -8/Garrison | Garrison Relay disabled 5234 | -8/Garrison | Triggered checkpoint 5250 | -8/Garrison | Core integrity fell below 50% 5278 | -8/Garrison | Lost 3 parts (1n1u1w) 5318 | -8/Garrison | Triggered checkpoint 5383 | -8/Garrison | Garrison Relay disabled 5434 | -8/Garrison | Discovered new exit (range 10) 5465 | -8/Garrison | Installed Relay Interface Framework 5544 | -8/Garrison | Triggered checkpoint 5634 | -8/Garrison | Triggered checkpoint 5666 | -8/Garrison | Garrison Relay disabled 5712 | -8/Garrison | Discovered new exit (range 10) 5770 | -8/Garrison | Build established: Bothacker-Mutant 5798 | -8/Garrison | Triggered checkpoint 5812 | -8/Garrison | Core integrity fell below 20% 6159 | -8/Garrison | Phase Generator disabled 6607 | -8/Garrison | Entered Materials 6607 | -8/Materials | Accompanied by 2 allies 6727 | -8/Materials | Destroyed by G-47 Trooper with Particle Gun Last Messages --------------- Extracting local subterrain data... 06693_ K-01 Serf collects debris. 06699_ Sneak attack on U-05 Engineer. 06699_ Jacked U-05 Engineer... >>map_walls Extracting local structural data... 06700_ K-01 Serf collects debris. 06702_ Sneak attack on K-01 Serf. 06702_ Jacked K-01 Serf... >>deconstruct_machine Set dismantle target: Material Compactor. 06703_ K-01 Serf collects debris. 06712_ Sneak attack on O-16 Technician. 06712_ Jacked O-16 Technician... >>purge_threat Purged threat record, alert level lowered. 06713_ K-01 Serf collects debris. 06725_ Connecting with Terminal... 06725_ Current location identified: Materials 06726_ U-05 Engineer lays Concrete. Map ----- +----------------------------------------------------+ | ???????????????###???????# #???????# #### | | ?????????????????+???????# #???????# #### | | ???????????????###???????# #???????# #### | | ??????????????####???????# #???????# #### | | ?????????????????#???????# #???????# #### | | ?????????????????######### #???????# #### | | ????????????????########## #???????# #### | | ????????????????# ??## #???????# #### | | ????????????????# ?## ######### #### | | ????????????????# ?## ######### #### | | ????????????????# # ####### ### | | ????????????????# """ # = * ! ### | | ?????#??????????#?""""" / %= %! %[ ### | | ?????#??????????#?""""" # *%= * ! ### | | ?????############?""""" # /####### ### | | ?????############? """ ?## ################ | | ?????############? ?## gg# === ! T ###### | | ?????############? ??## # === ###### | | ?????############### ##### + == ##### | | ?????????################# # ###### | | ?????????################# ################ | | ?????????################# ################ | | ?????????#### k ####### ############### | | ?????????#### " ############### | | ?????????#### "T ############### | | ??????####### @ u ############### | | ??????####### ####### ############### | | ??????########? ?############################ | | ??????########???############################ | | ??????########???############################ | | ?????????#####???############################ | | ?????????????????############################ | | ?????????#####???############################ | | ?????????????#???#???????#################### | | ?????????????#???#??????????????????????????? | | ?????????????#???#??????????????????????????? | | ????????????????????????????????????????????? | | ????????????????????????????????????????????? | | ????????????????????????????????????????????? | | ????????????????????????????????????????????? | | ????????????????????????????????????????????? | | ????????????????????????????????????????????? | | ????????????????????????????????????????????? | | ????????????????????????????????????????????? | | ????????????????????????????????????????????? | | ????????????????????????????????????????????? | | ????????????????????????????????????????????? | | ????????????????????????????????????????????? | | ????????????????????????????????????????????? | | ????????????????????????????????????????????? | +----------------------------------------------------+ Best States ------------- Heat Dissipation 31 Energy Generation 14 Energy Capacity 465 Matter Stores 385 Matter Capacity 450 Sight Range 18 Terrain Scan Density 10 Armor Coverage 150 Evasion (%) 42 Targeting Accuracy 18 Recoil Reduction 3 Item Schematics ----------------- Signal Interpreter | -10/Materials | Hacked Com. Wheel | -10/Materials | Hacked Robot Schematics ------------------ None Fabricated ------------ Nothing Alien Tech Used ----------------- None Achievements -------------- None Challenges ------------ None Game ------ Seed FortressSpreadManipulator Manual? 0 Play Time 01:36:11 Cumulative 104.2 hours Start 2020.03.01 @ 16:22:24 End 2020.03.14 @ 15:23:31 Sessions 7 Manual Loads 0 Difficulty Rogue Special Mode None Game No. 97 Rogue 97 Adventurer 0 Explorer 0 Win Type - Total 0 Types 0/0/0/0/0/0/0 Lore% 27 Gallery% 55 Achievement% 31 Wizard Run 0 Options --------- ASCII 0 Keyboard 1 Movement Vi Keybinds 0 Fullscreen 2 Font 32/Smallcaps Map View 76x50 Tactical HUD 1 Map Filters NONE Filters NONE Steam 1 RUN: 8e7afcf3-0a99-44bd-b02f-37a9b205f98b